Workbook

Sheet Arkusz1
B2: załącznik Nr 2 do Zarządzenia Nr III/219/2016 Burmistrza Gminy z dnia 26 kwietnia 2016 roku
B4: klasyfikacja budżetowa | E4: Jednostki organizacyjne Gminy Trzcińsko-Zdrój | O4: w tym
B6: dział | C6: rozdział | D6: § | E6: UM | F6: OPS | G6: jednostki oświatowe | N6: Razem | O6: rezerwa ogólna | P6: fundusz sołecki
G7: SP Trzcińsko-Zdrój | H7: SP Gogolice | I7: SP Stołeczna | J7: Przedszkole Miejskie | K7: Gimnazjum Góralice | L7: Publiczne Gimnazjum dla Dorosłych | M7: ZE-AO
B8: Dochody
B9: 010 | C9: 01095 | D9: 2010 | E9: 396230.71 | N9: 396230.71
B10: 600 | C10: 60014 | D10: 6620 | E10: 30000 | N10: 30000
B11: 751 | C11: 75101 | D11: 2010 | E11: 3808 | N11: 3808
B12: 852 | C12: 85295 | D12: 2010 | E12: 100 | N12: 100
E14: =SUM(E9:E13) -> 430138.71 | N14: =SUM(N9:N13) -> 430138.71
B15: Wydatki
B16: 010 | C16: 01095 | D16: 4110 | E16: 1002.27 | N16: 1002.27
B17: 010 | C17: 01095 | D17: 4120 | E17: 142.84 | N17: 142.84
B18: 010 | C18: 01095 | D18: 4170 | E18: 5830.52 | N18: 5830.52
B19: 010 | C19: 01095 | D19: 4300 | E19: 793.6 | N19: 793.6
B20: 010 | C20: 01095 | D20: 4430 | E20: 388461.48 | N20: 388461.48
B21: 600 | C21: 60014 | D21: 6050 | E21: 30000 | N21: 30000
B22: 751 | C22: 75101 | D22: 4210 | E22: 3808 | N22: 3808
B23: 852 | C23: 85295 | D23: 3110 | F23: 98 | N23: 98
B24: 852 | C24: 85295 | D24: 4210 | F24: 2 | N24: 2
E27: =SUM(E16:E26) -> 430038.71 | F27: =SUM(F23:F26) -> 100 | N27: =SUM(N16:N26) -> 430138.71
B28: Przeniesienia wydatków
B29: 600 | C29: 60014 | D29: 6050 | E29: -10000 | N29: -10000 | R29: wł
B30: 600 | C30: 60014 | D30: 6050 | E30: 30000 | N30: 30000 | R30: porozumienia
B31: 700 | C31: 71004 | D31: 4300 | E31: -2920 | N31: -2920
B32: 710 | C32: 71004 | D32: 4170 | E32: 2920 | N32: 2920
B33: 758 | C33: 75818 | D33: 6800 | E33: -20000 | N33: -20000
B34: 801 | C34: 80101 | D34: 4010 | G34: -18571 | H34: 7684 | I34: -35435 | N34: =SUM(G34:L34) -> -46322
B35: 801 | C35: 80101 | D35: 4040 | G35: -35 | I35: -216 | N35: =SUM(G35:K35) -> -251
B36: 801 | C36: 80101 | D36: 4110 | G36: -3100 | H36: 1400 | I36: -5940 | N36: =SUM(G36:L36) -> -7640
B37: 801 | C37: 80101 | D37: 4120 | G37: -400 | H37: 200 | I37: -900 | N37: =SUM(G37:M37) -> -1100
B38: 801 | C38: 80104 | D38: 4010 | J38: -16802 | N38: -16802
B39: 801 | C39: 80104 | D39: 4040 | J39: -1479 | N39: -1479
B40: 801 | C40: 80104 | D40: 4110 | J40: -3100 | N40: -3100
B41: 801 | C41: 80104 | D41: 4120 | J41: -450 | N41: -450
B42: 801 | C42: 80104 | D42: 4210 | J42: -287 | N42: -287
B43: 801 | C43: 80104 | D43: 4700 | J43: 287 | N43: 287
B44: 801 | C44: 80110 | D44: 4010 | K44: 1115 | N44: 1115
B45: 801 | C45: 80110 | D45: 4110 | K45: 200 | N45: 200
B46: 801 | C46: 80110 | D46: 4120 | K46: 100 | N46: 100
B47: 801 | C47: 80149 | D47: 4010 | J47: 18281 | N47: 18281
B48: 801 | C48: 80149 | D48: 4110 | J48: 3100 | N48: 3100
B49: 801 | C49: 80149 | D49: 4120 | J49: 450 | N49: 450
B50: 801 | C50: 80150 | D50: 4010 | G50: 18606 | H50: -7684 | I50: 35651 | K50: -1115 | N50: =SUM(G50:M50) -> 45458
B51: 801 | C51: 80150 | D51: 4110 | G51: 3100 | H51: -1400 | I51: 5940 | K51: -200 | N51: =SUM(G51:L51) -> 7440
B52: 801 | C52: 80150 | D52: 4120 | G52: 400 | H52: -200 | I52: 900 | K52: -100 | N52: =SUM(G52:L52) -> 1000
B53: 851 | C53: 85153 | D53: 4210 | E53: 916.88 | N53: 916.88
B54: 851 | C54: 85153 | D54: 4300 | E54: -916.88 | N54: -916.88
B55: 852 | C55: 85295 | D55: 4010 | F55: -1200 | N55: -1200
B56: 852 | C56: 85295 | D56: 4700 | F56: 1200 | N56: 1200
E57: =SUM(E29:E56) -> 0 | F57: =SUM(F55:F56) -> 0 | G57: =SUM(G34:G53) -> 0 | H57: =SUM(H34:H53) -> 0 | I57: =SUM(I33:I53) -> 0 | J57: =SUM(J37:J53) -> 0 | K57: =SUM(K42:K54) -> 0 | N57: =SUM(N29:N56) -> 0 | O57: =SUM(O29:O56) -> 0 | P57: =SUM(P29:P56) -> 0

Sheet Arkusz2

Sheet Arkusz3
